bitfinex/quotes_BTCUSD_20241003
["timestamp","ask_amount","ask_price","bid_price","bid_amount"]
[1727974968737,0.167954,60191.0,60190.0,0.001674]
[1727974968959,0.18588807,60191.0,60190.0,0.001674]
[1727974969199,0.18475426,60191.0,60190.0,0.001674]
[1727974969425,0.18475426,60191.0,60190.0,0.003674]
[1727974969426,0.30699907,60191.0,60190.0,0.003674]
[1727974969733,0.55850066,60191.0,60190.0,0.001674]
[1727974969962,0.55950066,60191.0,60190.0,0.001674]
[1727974970412,0.53345585,60191.0,60190.0,0.001674]
[1727974970631,0.53445585,60191.0,60190.0,0.001674]
[1727974970852,0.60935585,60191.0,60190.0,0.001674]
[1727974971082,0.60935585,60191.0,60190.0,0.002674]
[1727974971083,0.61835585,60191.0,60190.0,0.002674]
[1727974971301,0.166165,60181.0,60180.0,4e-05]
[1727974971525,0.45979039,60181.0,60180.0,4e-05]
[1727974971743,0.55562385,60181.0,60180.0,4e-05]
[1727974973424,0.58267405,60181.0,60180.0,0.00104]
[1727974974120,0.59167405,60181.0,60180.0,0.00204]
[1727974974786,0.56562385,60181.0,60180.0,0.00204]
[1727974975017,0.59167414,60181.0,60180.0,0.00204]
[1727974975236,0.69167414,60181.0,60180.0,0.00204]
[1727974976179,0.66562385,60181.0,60180.0,0.00204]
[1727974976837,0.66562385,60181.0,60180.0,0.003674]
[1727974977420,0.76502385,60181.0,60180.0,0.003674]
[1727974978804,0.85962385,60181.0,60180.0,0.003674]
[1727974979026,0.87867587,60181.0,60180.0,0.002674]
[1727974979280,0.87867587,60181.0,60180.0,0.003674]
[1727974979514,0.88867587,60181.0,60180.0,0.003674]
[1727974979772,0.88867587,60181.0,60180.0,0.001674]
[1727974979773,0.87767587,60181.0,60180.0,0.001674]
[1727974980067,0.87767587,60181.0,60180.0,0.002674]
[1727974980068,0.87867587,60181.0,60180.0,0.002674]
[1727974980281,0.87867587,60181.0,60154.0,0.01947887]
[1727974980282,0.123,60154.0,60150.0,0.24896514]
[1727974980517,0.294242,60153.0,60152.0,2.4e-07]
[1727974980745,0.266248,60151.0,60150.0,0.00038]
[1727974981016,0.291251,60150.0,60149.0,1e-06]
[1727974981262,0.291251,60150.0,60142.0,0.001634]
[1727974981263,0.002,60148.0,60142.0,0.001634]
[1727974981535,0.47278152,60150.0,60133.0,0.13032767]
[1727974981536,0.57634534,60139.0,60133.0,0.09906808]
[1727974981776,0.60146219,60139.0,60133.0,0.09906808]
[1727974982256,0.60146219,60139.0,60092.0,0.07428769]
[1727974982257,0.002,60133.0,60113.0,0.03816064]
[1727974982575,0.002,60133.0,60116.0,0.24858514]
[1727974982576,0.266342,60117.0,60116.0,0.24858514]
[1727974982785,0.16378391,60117.0,60116.0,0.24858514]
[1727974983023,0.24858514,60132.0,60110.0,0.2159182]
[1727974983255,0.24858514,60132.0,60110.0,0.0495572]
[1727974983256,0.24858514,60118.0,60110.0,0.0495572]
[1727974983488,0.332709,60113.0,60110.0,0.0495572]
[1727974983738,0.166358,60111.0,60110.0,0.0495572]
[1727974983951,0.53564948,60125.0,60110.0,0.0495572]
[1727974984226,0.166349,60115.0,60110.0,0.05712429]
[1727974984486,0.02607576,60118.0,60112.0,0.166355]
[1727974984747,0.02607576,60118.0,60110.0,0.0495572]
[1727974984748,0.166358,60111.0,60110.0,0.0495572]
[1727974985261,0.499061,60113.0,60110.0,0.0495572]
[1727974985528,0.16635,60115.0,60110.0,0.0495572]
[1727974985778,0.16635,60115.0,60111.0,0.00837495]
[1727974985779,0.166356,60112.0,60111.0,0.00837495]
[1727974986273,0.166358,60111.0,60110.0,0.0495572]
[1727974986493,0.31003189,60111.0,60110.0,0.0495572]
[1727974986725,0.31003189,60111.0,60110.0,0.05794075]
[1727974986968,0.31003189,60111.0,60110.0,0.00838355]
[1727974987214,0.31003189,60111.0,60101.0,0.0002]
[1727974987215,0.289383,60102.0,60101.0,0.0002]
[1727974987486,0.19661825,60102.0,60101.0,0.0002]
[1727974988414,0.20461825,60102.0,60101.0,0.0002]
[1727974988959,0.21461825,60102.0,60101.0,0.0002]
[1727974990187,0.184383,60102.0,60101.0,0.0002]
[1727974990637,0.35774056,60102.0,60101.0,0.0002]
[1727974990866,0.21461825,60102.0,60101.0,0.0002]
[1727974991093,0.20461825,60102.0,60101.0,0.0002]
[1727974991321,0.19661825,60102.0,60101.0,0.0002]
[1727974991609,0.19761825,60102.0,60101.0,0.0002]
[1727974992106,0.20161825,60102.0,60101.0,0.0002]
[1727974992314,0.36380496,60102.0,60101.0,0.0002]
[1727974992803,0.35980496,60102.0,60101.0,0.0002]
[1727974992806,0.20161825,60102.0,60101.0,0.0002]
[1727974993056,0.21361825,60102.0,60101.0,0.0002]
[1727974993819,0.2396998,60102.0,60101.0,0.0002]
[1727974994062,0.20446455,60102.0,60101.0,0.0002]
[1727974994314,0.21246455,60102.0,60101.0,0.0002]
[1727974994808,0.20446455,60102.0,60101.0,0.0002]
[1727974995122,0.2236998,60102.0,60101.0,0.0002]
[1727974995583,0.20346455,60102.0,60101.0,0.0002]
[1727974995843,0.03608155,60102.0,60101.0,0.0002]
[1727974996107,0.02708155,60102.0,60101.0,0.166586]
[1727974996364,0.012,60102.0,60101.0,0.166586]
[1727974996640,0.001,60102.0,60101.0,0.18561097]
[1727974997108,0.001,60102.0,60101.0,0.44879768]
[1727974997361,0.24858514,60110.0,60101.0,0.44879768]
[1727974997362,0.24858514,60110.0,60101.0,0.28241168]
[1727974997633,0.24858514,60110.0,60102.0,0.01902497]
[1727974997845,0.24858514,60110.0,60109.0,0.166364]
[1727974998078,0.41494814,60110.0,60109.0,0.01902497]
[1727974998327,0.19174161,60124.0,60109.0,0.01902497]
[1727974998579,0.19174161,60124.0,60102.0,0.102]
[1727974998580,0.166345,60116.0,60115.0,0.02571722]
[1727974999105,0.332669,60120.0,60108.0,0.33273]
[1727974999106,0.166336,60119.0,60108.0,0.33273]
[1727974999342,0.02850536,60120.0,60116.0,0.02573192]
[1727974999581,0.41492414,60118.0,60117.0,0.01936208]
[1727974999843,0.19436012,60118.0,60117.0,0.01936208]
[1727975000305,0.166378,60104.0,60103.0,0.01936208]
[1727975001842,0.166361,60111.0,60103.0,0.01936208]
[1727975002106,0.332693,60116.0,60103.0,0.01958013]
[1727975002107,0.24858514,60109.0,60103.0,0.01958013]
[1727975002339,0.24858514,60109.0,60101.0,0.101018]
[1727975002340,0.24858514,60109.0,60104.0,0.01958013]
[1727975002570,0.24858514,60109.0,60105.0,0.01958013]
[1727975002828,0.24858514,60109.0,60106.0,0.01958013]
[1727975003085,0.24858514,60109.0,60107.0,0.01958013]
[1727975003318,0.24858514,60109.0,60101.0,0.101018]
[1727975003319,0.166378,60104.0,60103.0,0.03916027]
[1727975003554,0.166378,60104.0,60103.0,0.05881525]
[1727975004057,0.167378,60104.0,60103.0,0.06281525]
[1727975004302,0.166378,60104.0,60103.0,0.05881525]
[1727975004533,0.166378,60104.0,60103.0,0.06281525]
[1727975004534,0.167378,60104.0,60103.0,0.06281525]
[1727975005249,0.167378,60104.0,60103.0,0.004]
[1727975005491,0.167378,60104.0,60103.0,0.06286445]
[1727975005706,0.168378,60104.0,60103.0,0.06286445]
[1727975006158,0.167378,60104.0,60103.0,0.06286445]
[1727975006628,0.170378,60104.0,60103.0,0.06286445]
[1727975006844,0.169378,60104.0,60103.0,0.05886445]
[1727975007285,0.170378,60104.0,60103.0,0.05886445]
[1727975007970,0.174378,60104.0,60103.0,0.05886445]
[1727975007988,0.171378,60104.0,60103.0,0.05886445]
[1727975008197,0.170378,60104.0,60103.0,0.05886445]
[1727975008425,0.171378,60104.0,60103.0,0.05886445]
[1727975008659,0.167378,60104.0,60103.0,0.05886445]
[1727975009102,0.170378,60104.0,60103.0,0.05886445]
[1727975009334,0.13289076,60104.0,60103.0,0.05886445]
[1727975009564,0.1559693,60104.0,60103.0,0.05886445]
[1727975010472,0.1549693,60104.0,60103.0,0.05886445]
[1727975010949,0.1559693,60104.0,60103.0,0.05886445]
[1727975011406,0.1559693,60104.0,60103.0,0.05986445]
[1727975011616,0.18492772,60104.0,60103.0,0.05875057]
[1727975012092,0.19092772,60104.0,60103.0,0.05875057]
[1727975012833,0.27656859,60104.0,60103.0,0.05875057]
[1727975013786,0.27456859,60104.0,60103.0,0.05875057]
[1727975014020,0.18692772,60104.0,60103.0,0.05875057]
[1727975014253,0.1549693,60104.0,60103.0,0.05875057]
[1727975014529,0.19645654,60104.0,60103.0,0.05875057]
[1727975014789,0.22841496,60104.0,60103.0,0.05875057]
[1727975015055,0.22841496,60104.0,60074.0,0.04908501]
[1727975015056,0.22441496,60104.0,60074.0,0.04908501]
[1727975015320,0.22441496,60104.0,60069.0,0.323755]
[1727975015321,1.56929236,60070.0,60069.0,0.323755]
[1727975015569,1.35079236,60070.0,60069.0,0.323755]
[1727975016331,1.35079236,60070.0,60069.0,0.48694171]
[1727975017025,1.35079236,60070.0,60069.0,0.77457895]
[1727975017289,1.35079236,60070.0,60069.0,0.78001354]
[1727975017754,1.35179236,60070.0,60069.0,0.78001354]
[1727975018714,1.35279236,60070.0,60069.0,0.78201354]
[1727975019855,1.35279236,60070.0,60069.0,0.68621294]
[1727975021511,0.77785936,60070.0,60069.0,0.69621294]
[1727975022010,0.77785936,60070.0,60069.0,0.77038165]
[1727975022498,0.77785936,60070.0,60069.0,0.69621294]
[1727975023630,0.77785936,60070.0,60069.0,0.69621294]
[1727975023849,0.77785936,60070.0,60069.0,0.68621294]
[1727975025207,0.77785936,60070.0,60069.0,0.81140933]
[1727975025432,0.77785936,60070.0,60069.0,0.68703094]
[1727975027024,0.77785936,60070.0,60069.0,0.7056374]
[1727975027963,0.77785936,60070.0,60069.0,0.68703094]
[1727975028193,0.77785936,60070.0,60069.0,0.70573185]
[1727975028447,0.77785936,60070.0,60069.0,0.67244666]
[1727975029857,0.77785936,60070.0,60069.0,0.48061002]
[1727975030068,0.77585936,60070.0,60069.0,0.57838824]
[1727975030306,0.77685936,60070.0,60069.0,0.48061002]
[1727975030533,0.77685936,60070.0,60069.0,0.77022488]
[1727975030534,0.77585936,60070.0,60069.0,0.77022488]
[1727975030759,0.77685936,60070.0,60069.0,0.67044666]
[1727975030986,0.77785936,60070.0,60069.0,0.77222488]
[1727975031238,0.77685936,60070.0,60069.0,0.77022488]
[1727975031462,0.77885936,60070.0,60069.0,0.78486877]
[1727975031919,0.77503425,60070.0,60069.0,0.66014666]
[1727975032623,0.77503425,60070.0,60069.0,0.27883502]
[1727975033076,0.77503425,60070.0,60069.0,0.3786113]
[1727975033557,0.77503425,60070.0,60069.0,0.2601393]
[1727975034241,0.77503425,60070.0,60069.0,0.27883502]
[1727975034393,0.77503425,60070.0,60069.0,0.35366078]
[1727975034645,0.77503425,60070.0,60069.0,0.27883502]
[1727975034892,0.77503425,60070.0,60069.0,0.2601393]
[1727975035127,0.77503425,60070.0,60069.0,0.31001828]
[1727975035359,0.77503425,60070.0,60069.0,0.05813157]
[1727975035605,0.77503425,60070.0,60069.0,0.00825259]
[1727975037065,0.94150625,60070.0,60069.0,0.002818]
[1727975037583,1.50249665,60070.0,60069.0,0.002818]
[1727975037746,1.50249665,60070.0,60061.0,0.0002]
[1727975037747,0.345894,60062.0,60061.0,0.0002]
[1727975038013,0.332999,60061.0,60048.0,0.00547645]
[1727975038303,1.1396513,60070.0,60042.0,0.05067992]
[1727975038304,0.244725,60051.0,60042.0,0.000818]
[1727975038542,0.343695,60051.0,60042.0,0.000818]
[1727975039265,0.340925,60051.0,60042.0,0.19265464]
[1727975039484,0.40709743,60051.0,60042.0,0.000818]
[1727975039986,0.36979676,60051.0,60042.0,0.000818]
[1727975040513,0.20050176,60051.0,60042.0,0.000818]
[1727975040723,0.20050176,60051.0,60042.0,0.28902462]
[1727975041000,0.20050176,60051.0,60050.0,0.00404]
[1727975041288,0.46793805,60051.0,60050.0,0.01004]
[1727975041486,0.41009743,60051.0,60042.0,0.000818]
[1727975041713,0.169297,60050.0,60042.0,0.000818]
[1727975042197,0.00277,60050.0,60042.0,0.000818]
[1727975042423,0.20050176,60051.0,60042.0,0.000818]
[1727975043229,0.166527,60050.0,60042.0,0.000818]
[1727975043469,0.20050176,60051.0,60042.0,0.000818]
[1727975043470,0.20050176,60051.0,60045.0,0.33308]
[1727975043701,0.001,60051.0,60050.0,0.33671371]
[1727975043996,0.001,60051.0,60050.0,0.28183829]
[1727975044206,0.001,60051.0,60050.0,0.44836529]
[1727975044448,0.166503,60059.0,60051.0,0.1]
[1727975044703,0.001,60051.0,60049.0,0.012]
[1727975044977,0.005,60056.0,60049.0,0.005]
[1727975045195,0.002,60060.0,60032.0,0.25402551]
[1727975045196,0.005,60042.0,60032.0,0.25402551]
[1727975045453,0.005,60042.0,60032.0,0.57834785]
[1727975045693,0.54292701,60050.0,60027.0,0.333178]
[1727975045694,0.005,60045.0,60033.0,0.16318671]
[1727975045946,0.24858514,60047.0,60038.0,0.16656]
[1727975046175,0.24858514,60047.0,60039.0,0.32974271]
[1727975046176,0.25358514,60047.0,60039.0,0.32974271]
[1727975046401,0.1725,60050.0,60039.0,0.32974271]
[1727975046402,0.1725,60050.0,60039.0,0.16318671]
[1727975046668,0.1725,60050.0,60042.0,0.333098]
[1727975046893,0.1725,60050.0,60043.0,0.16318671]
[1727975047143,0.1725,60050.0,60049.0,0.16653]
[1727975047144,0.097,60050.0,60049.0,0.16653]
[1727975047621,0.005,60051.0,60049.0,0.001]
[1727975048095,0.005,60051.0,60042.0,0.333099]
[1727975048278,0.001,60050.0,60048.0,0.166532]
[1727975048544,0.002,60050.0,60049.0,0.014]
[1727975048776,0.001,60050.0,60046.0,0.333074]
[1727975049094,0.001,60050.0,60047.0,0.49625771]
[1727975049336,0.001,60050.0,60049.0,0.16653]
[1727975049611,0.001,60050.0,60049.0,0.32971671]
[1727975049848,0.001,60050.0,60049.0,0.45271671]
[1727975050116,0.24858514,60062.0,60061.0,0.166497]
[1727975050337,0.24858514,60062.0,60061.0,0.32968371]
[1727975051066,0.77367225,60070.0,60062.0,0.332986]
[1727975051297,0.77367225,60070.0,60069.0,0.166475]
[1727975052283,0.74055421,60070.0,60069.0,0.189475]
[1727975052521,0.72369464,60070.0,60069.0,0.189475]
[1727975052755,0.72369464,60070.0,60069.0,0.49141488]
[1727975052756,0.70673154,60070.0,60069.0,0.49141488]
[1727975053038,0.68978013,60070.0,60069.0,0.49141488]
[1727975053765,0.42909024,60070.0,60069.0,0.50741488]
[1727975054002,0.41213549,60070.0,60069.0,0.51241488]
[1727975054245,0.14317487,60070.0,60069.0,0.93279988]
[1727975054476,0.23177566,60085.0,60084.0,0.299803]
[1727975054720,0.0795,60114.0,60091.0,0.266414]
[1727975054721,0.005,60108.0,60091.0,0.266414]
[1727975054952,0.005,60108.0,60091.0,0.74080733]
[1727975055172,0.005,60108.0,60091.0,0.71780733]
[1727975055405,0.005,60108.0,60093.0,0.023]
[1727975055632,0.005,60108.0,60103.0,0.166381]
[1727975056117,0.005,60108.0,60087.0,0.28820662]
[1727975056345,0.005,60108.0,60103.0,0.166381]
[1727975057066,0.005,60108.0,60103.0,0.32956771]
[1727975057307,0.005,60108.0,60103.0,0.33956771]
[1727975057308,0.002636,60104.0,60103.0,0.33956771]
[1727975057537,0.003636,60104.0,60103.0,0.34856771]
[1727975057759,0.001636,60104.0,60103.0,0.32956771]
[1727975058009,0.002636,60104.0,60103.0,0.4719805]
[1727975058243,0.003636,60104.0,60103.0,0.4859805]
[1727975058934,0.002636,60104.0,60103.0,0.4719805]
[1727975059352,0.001636,60104.0,60103.0,0.4579805]
[1727975059861,0.002636,60104.0,60103.0,0.4719805]
[1727975060632,0.003636,60104.0,60103.0,0.4859805]
[1727975061116,0.001636,60104.0,60103.0,0.4913505]
[1727975061386,0.003636,60104.0,60103.0,0.5293505]
[1727975061634,0.001636,60118.0,60109.0,0.327734]
[1727975061884,0.001636,60118.0,60109.0,1.09226133]
[1727975062631,0.005,60137.0,60109.0,1.09226133]
[1727975062632,0.33244,60162.0,60120.0,0.03337]
[1727975062866,0.33244,60162.0,60117.0,0.123]
[1727975062867,0.0826,60185.0,60184.0,0.005]
[1727975063155,0.0826,60185.0,60183.0,0.28820662]
[1727975063368,0.0826,60185.0,60181.0,0.0170519]
[1727975063369,0.0826,60185.0,60184.0,0.111032]
[1727975063589,0.0826,60185.0,60182.0,0.111032]
[1727975063590,0.06523524,60185.0,60182.0,0.111032]
[1727975063864,0.06523524,60185.0,60184.0,0.266157]
[1727975064083,0.005,60231.0,60184.0,0.266157]
[1727975064084,0.99817832,60201.0,60190.0,0.26614]
[1727975064330,0.99817832,60201.0,60190.0,0.45432671]
[1727975064837,0.99817832,60201.0,60190.0,0.45232671]
[1727975065075,0.99817832,60201.0,60190.0,0.26614]
[1727975065305,0.0943,60203.0,60190.0,0.45232671]
[1727975065798,0.0943,60203.0,60190.0,0.74053333]
[1727975066980,0.001817,60191.0,60190.0,0.75453333]
[1727975067199,0.000817,60191.0,60190.0,0.74053333]
[1727975067441,0.000817,60191.0,60190.0,0.76953333]
[1727975067674,0.99899532,60212.0,60198.0,0.58232462]
[1727975067675,0.99817832,60204.0,60198.0,0.58232462]
[1727975067892,0.2491922,60204.0,60198.0,0.57732462]
[1727975068684,0.2508282,60211.0,60198.0,0.57732462]
[1727975068907,0.2508282,60211.0,60198.0,0.74051133]
[1727975070166,0.001636,60211.0,60210.0,0.005]
[1727975070410,0.2491922,60224.0,60218.0,0.289063]
[1727975070651,0.2491922,60224.0,60218.0,0.57439333]
[1727975070889,0.0921,60230.0,60224.0,0.123]
[1727975071100,0.0921,60230.0,60229.0,0.166032]
[1727975071337,0.0921,60230.0,60229.0,0.32921871]
[1727975071827,0.2491922,60243.0,60234.0,0.266019]
[1727975072089,0.2491922,60243.0,60234.0,0.42920571]
[1727975072340,0.1749,60248.0,60234.0,0.42920571]
[1727975072789,0.1749,60248.0,60234.0,0.32920571]
[1727975073073,0.1749,60248.0,60223.0,0.28820662]
[1727975073332,0.1749,60248.0,60216.0,0.03337]
[1727975073333,0.331979,60245.0,60229.0,0.180032]
[1727975073624,0.1749,60248.0,60229.0,0.014]
[1727975073625,0.331998,60242.0,60229.0,0.014]
[1727975073862,0.2491922,60243.0,60224.0,0.014]
[1727975073863,0.28820662,60230.0,60224.0,0.014]
[1727975074118,0.28820662,60230.0,60219.0,0.2491922]
[1727975074119,0.166033,60229.0,60226.0,0.2491922]
[1727975074363,0.166042,60226.0,60220.0,0.2491922]
[1727975074601,0.166039,60227.0,60223.0,0.014]
[1727975074857,0.332083,60226.0,60203.0,0.066562]
[1727975075091,0.0911,60228.0,60218.0,0.2491922]
[1727975075092,0.12602852,60227.0,60218.0,0.2491922]
[1727975075350,0.12602852,60227.0,60204.0,0.2491922]
[1727975075351,0.28820662,60219.0,60204.0,0.2491922]
[1727975075581,0.166079,60212.0,60204.0,0.2491922]
[1727975075811,0.28820662,60213.0,60204.0,0.2491922]
[1727975076077,0.01496789,60212.0,60204.0,0.2491922]
[1727975076559,0.0912,60223.0,60208.0,0.166089]
[1727975076797,0.006,60212.0,60211.0,0.001]
[1727975077016,0.006,60212.0,60211.0,0.006]
[1727975077505,0.006,60212.0,60210.0,0.166083]
[1727975077506,0.012,60212.0,60210.0,0.166083]
[1727975077727,0.018,60212.0,60210.0,0.166083]
[1727975077952,0.018,60212.0,60208.0,0.332178]
[1727975077953,0.018,60212.0,60211.0,0.111032]
[1727975078190,0.018,60212.0,60209.0,0.111032]
[1727975078191,0.012,60212.0,60209.0,0.111032]
[1727975078468,0.012,60212.0,60209.0,0.277119]
[1727975078655,0.001,60212.0,60210.0,0.111032]
[1727975078933,0.001,60212.0,60211.0,0.011]
[1727975079153,0.02803176,60212.0,60211.0,0.011]
[1727975079404,0.02803176,60212.0,60211.0,0.166082]
[1727975079636,0.003,60212.0,60211.0,0.166082]
[1727975079863,0.02603055,60220.0,60211.0,0.111032]
[1727975080111,0.0912,60223.0,60211.0,0.111032]
[1727975080112,0.0912,60223.0,60211.0,0.001]
[1727975080356,0.002,60212.0,60211.0,0.001]
[1727975080867,0.167079,60212.0,60211.0,0.001]
[1727975081130,0.18311585,60212.0,60211.0,0.01]
[1727975081642,0.166093,60207.0,60206.0,0.2491922]
[1727975081863,0.166097,60206.0,60202.0,0.2491922]
[1727975082085,0.166102,60204.0,60203.0,0.111032]
[1727975082330,0.166099,60205.0,60203.0,0.111032]
[1727975082804,0.166099,60205.0,60195.0,0.2491922]
[1727975082805,0.02603587,60205.0,60201.0,0.111032]
[1727975083024,0.02603587,60205.0,60202.0,0.2491922]
[1727975083256,0.02603587,60205.0,60203.0,0.116032]
[1727975083525,0.02603587,60205.0,60204.0,0.111032]
[1727975083778,0.02603587,60205.0,60201.0,0.111032]
[1727975084217,0.2511922,60236.0,60201.0,0.117032]
[1727975084480,0.2511922,60236.0,60202.0,0.111032]
[1727975084481,0.1,60216.0,60202.0,0.111032]
[1727975084693,0.332139,60216.0,60202.0,0.3602242]
[1727975084954,0.2511922,60236.0,60204.0,0.006]
[1727975084955,0.2491922,60227.0,60204.0,0.006]
[1727975085173,0.2491922,60220.0,60207.0,0.332184]
[1727975085415,0.2491922,60220.0,60205.0,0.27421871]
[1727975085416,0.332124,60219.0,60208.0,0.27421871]
[1727975085638,0.1,60225.0,60209.0,0.111032]
[1727975085879,0.166083,60211.0,60209.0,0.111032]
[1727975086128,0.166099,60205.0,60204.0,0.006]
[1727975086350,0.166101,60204.0,60203.0,0.2491922]
[1727975086829,0.332204,60204.0,60200.0,4e-05]
[1727975087086,0.16611,60201.0,60200.0,4e-05]
[1727975087335,0.166105,60203.0,60200.0,4e-05]
[1727975087570,0.332204,60204.0,60200.0,4e-05]
[1727975087571,0.166108,60202.0,60200.0,4e-05]
[1727975087810,0.332182,60208.0,60200.0,4e-05]
[1727975088028,0.001,60204.0,60200.0,4e-05]
[1727975088766,0.01,60204.0,60203.0,0.001]
[1727975088983,0.01,60204.0,60200.0,4e-05]
[1727975088984,0.001,60204.0,60201.0,0.32929671]
[1727975089219,0.001,60204.0,60202.0,0.111032]
[1727975089441,0.02603663,60211.0,60202.0,0.111032]
[1727975089442,0.35820563,60211.0,60202.0,0.111032]
[1727975089694,0.001,60204.0,60202.0,0.111032]
[1727975089952,0.001,60204.0,60203.0,0.16318671]
[1727975090173,0.001,60204.0,60203.0,0.27421871]
[1727975090395,0.002,60204.0,60203.0,0.44032271]
[1727975090624,0.002,60204.0,60203.0,0.27421871]
[1727975090850,0.002,60204.0,60203.0,0.44032271]
[1727975091153,0.003,60204.0,60203.0,0.27421871]
[1727975091379,0.003,60204.0,60203.0,0.44032271]
[1727975091595,0.001,60204.0,60203.0,0.44032271]
[1727975091824,0.002,60204.0,60203.0,0.44032271]
[1727975092511,0.166077,60213.0,60203.0,0.27421871]
[1727975092751,0.166077,60213.0,60207.0,0.166093]
[1727975093011,0.332136,60217.0,60208.0,0.27421871]
[1727975093229,0.4356595,60219.0,60208.0,0.27421871]
[1727975093230,0.166062,60219.0,60211.0,0.332162]
[1727975093458,0.166062,60219.0,60212.0,0.44029671]
[1727975093683,0.16605,60223.0,60215.0,0.166069]
[1727975093909,0.16605,60223.0,60213.0,0.443185]
[1727975093910,0.165953,60222.0,60216.0,0.44028671]
[1727975094166,0.3321,60223.0,60217.0,0.111032]
[1727975094167,0.16605,60223.0,60217.0,0.111032]
[1727975094399,0.332084,60226.0,60217.0,0.111032]
[1727975094630,0.332084,60226.0,60217.0,0.3602242]
[1727975094842,0.166055,60221.0,60218.0,0.111032]
[1727975095092,0.165749,60223.0,60218.0,0.277094]
[1727975095314,0.165749,60223.0,60219.0,0.111032]
[1727975095539,0.33169,60225.0,60218.0,0.111032]
[1727975095769,0.16595,60223.0,60218.0,0.111032]
[1727975095995,0.166049,60223.0,60218.0,0.282094]
[1727975096253,0.165946,60224.0,60219.0,0.111032]
[1727975096502,0.165955,60221.0,60219.0,0.111032]
[1727975096717,0.02602986,60228.0,60217.0,0.277096]
[1727975096718,0.331894,60224.0,60217.0,0.277096]
[1727975096959,0.166044,60225.0,60219.0,0.166059]
[1727975097176,0.166044,60225.0,60218.0,0.60634471]
[1727975097177,0.331995,60224.0,60220.0,0.111032]
[1727975097422,0.332001,60223.0,60219.0,0.111032]
[1727975097648,0.331901,60223.0,60219.0,0.114032]
[1727975097870,0.166057,60220.0,60219.0,0.003]
[1727975098095,0.331601,60223.0,60219.0,0.111032]
[1727975098358,0.166057,60220.0,60219.0,0.111032]
[1727975098605,0.166057,60220.0,60219.0,0.112032]
[1727975098606,0.165857,60220.0,60219.0,0.112032]
[1727975098874,0.165857,60220.0,60219.0,0.111032]
[1727975099111,0.165857,60220.0,60219.0,0.003]
[1727975099348,0.166071,60215.0,60214.0,0.2491922]
[1727975099805,0.166074,60214.0,60209.0,0.166088]
[1727975100053,0.332121,60219.0,60210.0,0.60638571]
[1727975100283,0.00163,60225.0,60212.0,0.2491922]
[1727975100506,0.2491922,60222.0,60213.0,0.60637071]
[1727975100772,0.332102,60223.0,60215.0,0.332142]
[1727975101001,0.664204,60223.0,60216.0,0.27421871]
[1727975101252,0.166066,60217.0,60216.0,0.16318671]
[1727975101479,0.00163,60225.0,60216.0,0.111032]
[1727975101737,0.00163,60225.0,60212.0,0.2491922]
[1727975101738,0.166074,60214.0,60213.0,0.117032]
[1727975101952,0.16607,60216.0,60213.0,0.113032]
[1727975102178,0.332122,60219.0,60213.0,0.113032]
[1727975102179,0.166071,60215.0,60214.0,0.111032]
[1727975102662,0.00163,60225.0,60215.0,0.332141]
[1727975102882,0.3321,60223.0,60216.0,0.27421871]
[1727975103124,0.166056,60221.0,60217.0,0.111032]
[1727975103599,0.00163,60225.0,60218.0,0.16318671]
[1727975103876,0.00263,60225.0,60219.0,0.111032]
[1727975104118,0.00163,60225.0,60222.0,0.166051]
[1727975104356,0.00163,60225.0,60223.0,0.111032]
[1727975104589,0.00163,60225.0,60223.0,0.166049]
[1727975104814,0.00163,60225.0,60224.0,0.111032]
[1727975105057,0.00163,60225.0,60224.0,0.32923271]
[1727975105277,0.00163,60225.0,60224.0,0.46326471]
[1727975105508,0.00163,60225.0,60224.0,0.49663471]
[1727975105974,0.00163,60225.0,60224.0,0.74435553]
[1727975106203,0.00163,60225.0,60224.0,0.59863471]
[1727975106531,0.00173,60235.0,60234.0,0.166019]
[1727975106741,0.00173,60235.0,60234.0,0.77578233]
[1727975106994,0.00173,60235.0,60234.0,1.18150832]
[1727975107225,0.2491922,60250.0,60238.0,0.224378]
[1727975107482,0.2491922,60250.0,60238.0,0.59859671]
[1727975107694,0.2491922,60250.0,60249.0,0.45418362]
[1727975107923,0.2491922,60250.0,60249.0,0.44019571]
[1727975108158,0.2491922,60258.0,60249.0,0.27421871]
[1727975108420,0.2491922,60258.0,60251.0,0.165972]
[1727975108640,0.0002,60259.0,60251.0,0.53030235]
[1727975108874,0.0002,60259.0,60251.0,0.59730067]
[1727975109088,0.0002,60259.0,60251.0,0.63067067]
[1727975109567,0.0002,60259.0,60256.0,0.03337]
[1727975109837,0.000817,60261.0,60260.0,0.227317]
[1727975110101,0.000817,60261.0,60260.0,0.39721871]
[1727975110348,0.000817,60261.0,60260.0,0.57016571]
[1727975110815,0.2491922,60278.0,60266.0,0.023]
[1727975111061,0.2491922,60278.0,60265.0,0.005]
[1727975111062,0.2491922,60278.0,60272.0,0.60024934]
[1727975111303,0.2491922,60278.0,60272.0,0.56313271]
[1727975111549,0.2491922,60278.0,60272.0,0.71127735]
[1727975111808,0.0002,60279.0,60272.0,0.56313271]
[1727975112047,0.0002,60279.0,60272.0,0.81232491]
[1727975112312,0.0002,60279.0,60272.0,0.57513271]
[1727975112538,0.0002,60279.0,60278.0,0.58410462]
[1727975112775,0.0002,60279.0,60278.0,0.85832333]
[1727975113003,0.001634,60284.0,60280.0,0.172892]
[1727975113268,0.2491922,60295.0,60289.0,0.57707362]
[1727975113495,0.2491922,60295.0,60289.0,0.85329233]
[1727975113716,0.2491922,60311.0,60298.0,0.47704862]
[1727975114172,0.331652,60305.0,60298.0,0.111032]
[1727975114176,0.331718,60293.0,60289.0,0.04917374]
[1727975114382,0.44034385,60302.0,60278.0,0.013]
[1727975114383,0.331686,60298.0,60290.0,0.2491922]
[1727975114619,0.165862,60291.0,60290.0,0.2491922]
[1727975114840,0.165862,60291.0,60290.0,0.111032]
[1727975115838,0.331693,60297.0,60290.0,0.27752858]
[1727975116078,0.331693,60297.0,60289.0,0.022]
[1727975116079,0.165859,60292.0,60291.0,0.111032]
[1727975116315,0.331675,60300.0,60290.0,0.111032]